{"text_format":"1","workbook":"xlsx","n_sheets":17,"sheets":["Summarized Dose Metrics","Dose metrics (exposure 1)","Dose metrics (exposure 2)","Dose metrics (exposure 3)","Dose metrics (exposure 4)","Dose metrics (exposure 5)","MPPD report (exposure 1)","MPPD exposure data (exposure 1)","MPPD report (exposure 2)","MPPD exposure data (exposure 2)","MPPD report (exposure 3)","MPPD exposure data (exposure 3)","MPPD report (exposure 4)","MPPD exposure data (exposure 4)","MPPD report (exposure 5)","MPPD exposure data (exposure 5)","dropdown lists"],"not_rendered":{"charts":0,"images":0,"macros":0,"external_links":0,"defined_names":10,"comments":0,"pivot_tables":0},"unopened":[],"bounds":{"document_bytes":16777216,"sheet_cells":100000,"rows_first":2000,"rows_last":500,"rows_between":2000,"halvings":0,"cell_chars":16384,"cell_head_chars":4096},"cells_cut":0,"cells_raw":0,"read":"whole","date_system":"1900"}

{"sheet":"Summarized Dose Metrics","index":0,"n_rows":8,"n_cols":6,"rows_kept":8,"cut":false,"hidden":false,"merged":[[0,0,0,1],[0,3,0,6]]}
["Input parameters",null,null,"Summarized Dose Metrics"]
[]
["Select experimental variable:",null,null,null,"Experiment","Dose"]
["Select  number of experimental groups:",null,null,null,{"$f":"IF($B$5=\"Yes\",\"control\",INDIRECT(CONCATENATE(\"'Dose metrics (exposure 1)'!\",'dropdown lists'!$A$16)))","v":{"$error":"#N/A"}},{"$f":"IF($B$5=\"Yes\",0,INDIRECT(CONCATENATE(\"'Dose metrics (exposure 1)'!\",'dropdown lists'!$A$10)))","v":{"$error":"#N/A"}}]
["Is one of the groups a control (no exposure) group?",null,null,null,{"$f":"IF($B$5=\"Yes\",INDIRECT(CONCATENATE(\"'Dose metrics (exposure 1)'!\",'dropdown lists'!$A$16)),INDIRECT(CONCATENATE(\"'Dose metrics (exposure 2)'!\",'dropdown lists'!$A$16)))","v":{"$error":"#N/A"}},{"$f":"IF($B$5=\"Yes\",INDIRECT(CONCATENATE(\"'Dose metrics (exposure 1)'!\",'dropdown lists'!$A$10)),INDIRECT(CONCATENATE(\"'Dose metrics (exposure 2)'!\",'dropdown lists'!$A$10)))","v":{"$error":"#N/A"}}]
["Select dose metrics:",null,null,null,{"$f":"IF($B$5=\"Yes\",IF($B$4>1,INDIRECT(CONCATENATE(\"'Dose metrics (exposure 2)'!\",'dropdown lists'!$A$16)),\" \"),IF($B$4>2,INDIRECT(CONCATENATE(\"'Dose metrics (exposure 3)'!\",'dropdown lists'!$A$16)),\" \"))","v":" "},{"$f":"IF($B$5=\"Yes\",IF($B$4>1,INDIRECT(CONCATENATE(\"'Dose metrics (exposure 2)'!\",'dropdown lists'!$A$10)),\" \"),IF($B$4>2,INDIRECT(CONCATENATE(\"'Dose metrics (exposure 3)'!\",'dropdown lists'!$A$10)),\" \"))","v":" "}]
[null,null,null,null,{"$f":"IF($B$5=\"Yes\",IF($B$4>1,INDIRECT(CONCATENATE(\"'Dose metrics (exposure 3)'!\",'dropdown lists'!$A$16)),\" \"),IF($B$4>2,INDIRECT(CONCATENATE(\"'Dose metrics (exposure 4)'!\",'dropdown lists'!$A$16)),\" \"))","v":" "},{"$f":"IF($B$5=\"Yes\",IF($B$4>1,INDIRECT(CONCATENATE(\"'Dose metrics (exposure 3)'!\",'dropdown lists'!$A$10)),\" \"),IF($B$4>2,INDIRECT(CONCATENATE(\"'Dose metrics (exposure 4)'!\",'dropdown lists'!$A$10)),\" \"))","v":" "}]
[null,null,null,null,{"$f":"IF($B$5=\"Yes\",IF($B$4>1,INDIRECT(CONCATENATE(\"'Dose metrics (exposure 4)'!\",'dropdown lists'!$A$16)),\" \"),IF($B$4>2,INDIRECT(CONCATENATE(\"'Dose metrics (exposure 5)'!\",'dropdown lists'!$A$16)),\" \"))","v":" "},{"$f":"IF($B$5=\"Yes\",IF($B$4>1,INDIRECT(CONCATENATE(\"'Dose metrics (exposure 4)'!\",'dropdown lists'!$A$10)),\" \"),IF($B$4>2,INDIRECT(CONCATENATE(\"'Dose metrics (exposure 5)'!\",'dropdown lists'!$A$10)),\" \"))","v":" "}]

{"sheet":"Dose metrics (exposure 1)","index":1,"n_rows":29,"n_cols":10,"rows_kept":29,"cut":false,"hidden":false,"merged":[[0,0,0,2],[0,4,0,9],[8,0,8,2],[15,0,15,2],[21,0,21,2]]}
["Population considerations",null,null,null,"Dose metrics"]
[]
["Lung geometry:",{"$f":"CONCATENATE(VLOOKUP(\"Geometry:\",'MPPD report (exposure 1)'!$B:$F,2,FALSE),\" \",VLOOKUP(\"Geometry:\",'MPPD report (exposure 1)'!$B:$F,3,FALSE),\" \",VLOOKUP(\"Geometry:\",'MPPD report (exposure 1)'!$B:$F,4,FALSE))","v":{"$error":"#N/A"}},null,null,"Region","ET","TB","PUL","TB+PUL","ET+TB+PUL"]
["Model:",{"$f":"VLOOKUP(\"Model:\",'MPPD report (exposure 1)'!$A:$F,2,FALSE)","v":{"$error":"#N/A"}},null,null,"Deposition fraction",{"$f":"VLOOKUP(\"ET\",'MPPD report (exposure 1)'!$B$1:$E$100,4,FALSE)","v":{"$error":"#N/A"}},{"$f":"VLOOKUP(\"TB\",'MPPD report (exposure 1)'!$B$1:$E$100,4,FALSE)","v":{"$error":"#N/A"}},{"$f":"VLOOKUP(\"pulmonary\",'MPPD report (exposure 1)'!$B$1:$E$100,4,FALSE)","v":{"$error":"#N/A"}},{"$f":"G4+H4","v":{"$error":"#N/A"}},{"$f":"SUM(F4:H4)","v":{"$error":"#N/A"}}]
["TLC (ml):",{"$f":"VLOOKUP(\"TLC\",'MPPD report (exposure 1)'!$A:$F,3,FALSE)","v":{"$error":"#N/A"}},null,null,"Daily deposited mass (mg/day)",{"$f":"$B$11/1000000*$B$13*$B$12*$B$24*60*F4","v":{"$error":"#N/A"}},{"$f":"$B$11/1000000*$B$13*$B$12*$B$24*60*G4","v":{"$error":"#N/A"}},{"$error":"#N/A"},{"$f":"G5+H5","v":{"$error":"#N/A"}},{"$f":"SUM(F5:H5)","v":{"$error":"#N/A"}}]
["FRC (ml):",{"$f":"VLOOKUP(\"FRC\",'MPPD report (exposure 1)'!$A:$F,3,FALSE)","v":{"$error":"#N/A"}},null,null,"Surface area SA (cm2)-normalizing factor",{"$f":"INDIRECT(CONCATENATE(\"'MPPD report (exposure 1)'!\",ADDRESS(CELL(\"row\",INDEX('MPPD report (exposure 1)'!$A$1:$A$100,MATCH(\"Extrathoracic\",'MPPD report (exposure 1)'!$A$1:$A$100,0))),4)))","v":{"$error":"#N/A"}},{"$f":"INDIRECT(CONCATENATE(\"'MPPD report (exposure 1)'!\",ADDRESS(CELL(\"row\",INDEX('MPPD report (exposure 1)'!$A$1:$A$100,MATCH(\"Extrathoracic\",'MPPD report (exposure 1)'!$A$1:$A$100,0)))+1,4)))","v":{"$error":"#N/A"}},{"$f":"INDIRECT(CONCATENATE(\"'MPPD report (exposure 1)'!\",ADDRESS(CELL(\"row\",INDEX('MPPD report (exposure 1)'!$A$1:$A$100,MATCH(\"Extrathoracic\",'MPPD report (exposure 1)'!$A$1:$A$100,0)))+2,4)))","v":{"$error":"#N/A"}},{"$f":"G6+H6","v":{"$error":"#N/A"}},{"$f":"SUM(F6:H6)","v":{"$error":"#N/A"}}]
["Enter body weight (kg)",null,null,null,"Daily deposited mass per regional SA (mg/day/m2)",{"$f":"F5/(F6*0.0001)","v":{"$error":"#N/A"}},{"$f":"G5/(G6*0.0001)","v":{"$error":"#N/A"}},{"$error":"#N/A"},{"$error":"#N/A"},{"$error":"#N/A"}]
[null,null,null,null,"Deposited dose (mg)",{"$f":" INDEX('MPPD exposure data (exposure 1)'!$E:$E, COUNTA('MPPD exposure data (exposure 1)'!$E:$E ) )","v":{"$error":"#VALUE!"}},{"$f":" INDEX('MPPD exposure data (exposure 1)'!$F:$F, COUNTA('MPPD exposure data (exposure 1)'!$F:$F ) )","v":{"$error":"#VALUE!"}},{"$f":" INDEX('MPPD exposure data (exposure 1)'!$G:$G, COUNTA('MPPD exposure data (exposure 1)'!$G:$G ) )","v":{"$error":"#VALUE!"}},{"$f":"G8+H8","v":{"$error":"#VALUE!"}},{"$f":"SUM(F8:H8)","v":{"$error":"#VALUE!"}}]
["Exposure conditions and activity characteristics",null,null,null,"Deposited dose per SA (mg/cm2)",{"$f":"F8/F6","v":{"$error":"#VALUE!"}},{"$f":"G8/G6","v":{"$error":"#VALUE!"}},{"$f":"H8/H6","v":{"$error":"#VALUE!"}},{"$f":"I8/I6","v":{"$error":"#VALUE!"}},{"$error":"#VALUE!"}]
[null,null,null,null,"Retained dose (mg)",{"$f":" INDEX('MPPD exposure data (exposure 1)'!$M:$M, COUNTA('MPPD exposure data (exposure 1)'!$M:$M ) )","v":{"$error":"#VALUE!"}},{"$f":" INDEX('MPPD exposure data (exposure 1)'!$I:$I, COUNTA('MPPD exposure data (exposure 1)'!$I:$I ) )","v":{"$error":"#VALUE!"}},{"$f":" INDEX('MPPD exposure data (exposure 1)'!$K:$K, COUNTA('MPPD exposure data (exposure 1)'!$K:$K) )","v":{"$error":"#VALUE!"}},{"$f":"G10+H10","v":{"$error":"#VALUE!"}},{"$f":"SUM(F10:H10)","v":{"$error":"#VALUE!"}}]
["Aerosol conc. (mg/m3):",{"$f":"VLOOKUP(\"Aerosol\",'MPPD report (exposure 1)'!$A1:$F50,3,FALSE)","v":{"$error":"#N/A"}},null,null,"Retained dose per SA (mg/cm2)",{"$f":"F10/F6","v":{"$error":"#VALUE!"}},{"$f":"G10/G6","v":{"$error":"#VALUE!"}},{"$f":"H10/H6","v":{"$error":"#VALUE!"}},{"$f":"I10/I6","v":{"$error":"#VALUE!"}},{"$f":"J10/J6","v":{"$error":"#VALUE!"}}]
["Breathing frequency (/min):",{"$f":"VLOOKUP(\"Frequency:\",'MPPD report (exposure 1)'!$B1:$D50,2,FALSE)","v":{"$error":"#N/A"}}]
["Tidal volume (ml):",{"$f":"VLOOKUP(\"Tidal\",'MPPD report (exposure 1)'!$E2:$G51,3,FALSE)","v":{"$error":"#N/A"}},null,null,"Systemic dose (mg):",{"$f":" INDEX('MPPD exposure data (exposure 1)'!$X:$X, COUNTA('MPPD exposure data (exposure 1)'!$X:$X ) )","v":{"$error":"#VALUE!"}}]
["Breathing scenario:",{"$f":"CONCATENATE(VLOOKUP(\"scenario:\",'MPPD report (exposure 1)'!$B3:$D52,2,FALSE),\" \",VLOOKUP(\"scenario:\",'MPPD report (exposure 1)'!$B3:$D52,3,FALSE))","v":{"$error":"#N/A"}}]
[null,null,null,null,"Software version:    ",{"$f":"IF(ISBLANK('MPPD report (exposure 1)'!A1),CONCATENATE('MPPD report (exposure 1)'!A2,\" \",'MPPD report (exposure 1)'!B2,\" \",'MPPD report (exposure 1)'!C2,\" \",'MPPD report (exposure 1)'!D2),CONCATENATE('MPPD report (exposure 1)'!A1,\" \",'MPPD report (exposure 1)'!B1,\" \",'MPPD report (exposure 1)'!C1,\" \",'MPPD report (exposure 1)'!D1))","v":"   "}]
["Particle properties"]
[]
["Mass density (g/cm3):",{"$f":"VLOOKUP(\"density:\",'MPPD report (exposure 1)'!$B7:$C56,2,FALSE)","v":{"$error":"#N/A"}}]
["Diameter (µm):",{"$f":"VLOOKUP(\"Diameter:\",'MPPD report (exposure 1)'!$A8:$B57,2,FALSE)","v":{"$error":"#N/A"}}]
["GSD:",{"$f":"VLOOKUP(\"(GSD):\",'MPPD report (exposure 1)'!$B9:$C58,2,FALSE)","v":{"$error":"#N/A"}}]
[]
["Exposure time settings"]
[]
["Hours/day:",{"$f":"VLOOKUP(\"Hours\",'MPPD report (exposure 1)'!$C:$G,4,FALSE)","v":{"$error":"#N/A"}}]
["Days/week:",{"$f":"VLOOKUP(\"Days\",'MPPD report (exposure 1)'!$C:$G,4,FALSE)","v":{"$error":"#N/A"}}]
["Number of weeks:",{"$f":"VLOOKUP(\"Weeks:\",'MPPD report (exposure 1)'!$C:$D,2,FALSE)","v":{"$error":"#N/A"}}]
["Post-exposure days:",{"$f":"VLOOKUP(\"Post-Exposure\",'MPPD report (exposure 1)'!$A:$C,3,FALSE)","v":{"$error":"#N/A"}}]
[]
["Total exposure (hours)",{"$f":"B24*B25*B26","v":{"$error":"#N/A"}}]

{"sheet":"Dose metrics (exposure 2)","index":2,"n_rows":29,"n_cols":10,"rows_kept":29,"cut":false,"hidden":false,"merged":[[0,0,0,2],[0,4,0,9],[8,0,8,2],[15,0,15,2],[21,0,21,2]]}
["Population considerations",null,null,null,"Dose metrics"]
[]
["Lung geometry:",{"$f":"CONCATENATE(VLOOKUP(\"Geometry:\",'MPPD report (exposure 2)'!$B:$F,2,FALSE),\" \",VLOOKUP(\"Geometry:\",'MPPD report (exposure 2)'!$B:$F,3,FALSE),\" \",VLOOKUP(\"Geometry:\",'MPPD report (exposure 2)'!$B:$F,4,FALSE))","v":{"$error":"#N/A"}},null,null,"Region","ET","TB","PUL","TB+PUL","ET+TB+PUL"]
["Model:",{"$f":"VLOOKUP(\"Model:\",'MPPD report (exposure 2)'!$A:$F,2,FALSE)","v":{"$error":"#N/A"}},null,null,"Deposition fraction",{"$f":"VLOOKUP(\"ET\",'MPPD report (exposure 2)'!$B$1:$E$100,4,FALSE)","v":{"$error":"#N/A"}},{"$f":"VLOOKUP(\"TB\",'MPPD report (exposure 2)'!$B$1:$E$100,4,FALSE)","v":{"$error":"#N/A"}},{"$f":"VLOOKUP(\"pulmonary\",'MPPD report (exposure 2)'!$B$1:$E$100,4,FALSE)","v":{"$error":"#N/A"}},{"$f":"G4+H4","v":{"$error":"#N/A"}},{"$f":"SUM(F4:H4)","v":{"$error":"#N/A"}}]
["TLC (ml):",{"$f":"VLOOKUP(\"TLC\",'MPPD report (exposure 2)'!$A:$F,3,FALSE)","v":{"$error":"#N/A"}},null,null,"Daily deposited mass (mg/day)",{"$f":"$B$11/1000000*$B$13*$B$12*$B$24*60*F4","v":{"$error":"#N/A"}},{"$f":"$B$11/1000000*$B$13*$B$12*$B$24*60*G4","v":{"$error":"#N/A"}},{"$error":"#N/A"},{"$f":"G5+H5","v":{"$error":"#N/A"}},{"$f":"SUM(F5:H5)","v":{"$error":"#N/A"}}]
["FRC (ml):",{"$f":"VLOOKUP(\"FRC\",'MPPD report (exposure 2)'!$A:$F,3,FALSE)","v":{"$error":"#N/A"}},null,null,"Surface area SA (cm2)-normalizing factor",{"$f":"INDIRECT(CONCATENATE(\"'MPPD report (exposure 2)'!\",ADDRESS(CELL(\"row\",INDEX('MPPD report (exposure 2)'!$A$1:$A$100,MATCH(\"Extrathoracic\",'MPPD report (exposure 2)'!$A$1:$A$100,0))),4)))","v":{"$error":"#N/A"}},{"$f":"INDIRECT(CONCATENATE(\"'MPPD report (exposure 2)'!\",ADDRESS(CELL(\"row\",INDEX('MPPD report (exposure 2)'!$A$1:$A$100,MATCH(\"Extrathoracic\",'MPPD report (exposure 2)'!$A$1:$A$100,0)))+1,4)))","v":{"$error":"#N/A"}},{"$f":"INDIRECT(CONCATENATE(\"'MPPD report (exposure 2)'!\",ADDRESS(CELL(\"row\",INDEX('MPPD report (exposure 2)'!$A$1:$A$100,MATCH(\"Extrathoracic\",'MPPD report (exposure 2)'!$A$1:$A$100,0)))+2,4)))","v":{"$error":"#N/A"}},{"$f":"G6+H6","v":{"$error":"#N/A"}},{"$f":"SUM(F6:H6)","v":{"$error":"#N/A"}}]
["Enter body weight (kg)",null,null,null,"Daily deposited mass per regional SA (mg/day/m2)",{"$f":"F5/(F6*0.0001)","v":{"$error":"#N/A"}},{"$f":"G5/(G6*0.0001)","v":{"$error":"#N/A"}},{"$error":"#N/A"},{"$error":"#N/A"},{"$error":"#N/A"}]
[null,null,null,null,"Deposited dose (mg)",{"$f":" INDEX('MPPD exposure data (exposure 2)'!$E:$E, COUNTA('MPPD exposure data (exposure 2)'!$E:$E ) )","v":{"$error":"#VALUE!"}},{"$f":" INDEX('MPPD exposure data (exposure 2)'!$F:$F, COUNTA('MPPD exposure data (exposure 2)'!$F:$F ) )","v":{"$error":"#VALUE!"}},{"$f":" INDEX('MPPD exposure data (exposure 2)'!$G:$G, COUNTA('MPPD exposure data (exposure 2)'!$G:$G ) )","v":{"$error":"#VALUE!"}},{"$f":"G8+H8","v":{"$error":"#VALUE!"}},{"$f":"SUM(F8:H8)","v":{"$error":"#VALUE!"}}]
["Exposure conditions and activity characteristics",null,null,null,"Deposited dose per SA (mg/cm2)",{"$f":"F8/F6","v":{"$error":"#VALUE!"}},{"$f":"G8/G6","v":{"$error":"#VALUE!"}},{"$f":"H8/H6","v":{"$error":"#VALUE!"}},{"$f":"I8/I6","v":{"$error":"#VALUE!"}},{"$error":"#VALUE!"}]
[null,null,null,null,"Retained dose (mg)",{"$f":" INDEX('MPPD exposure data (exposure 2)'!$M:$M, COUNTA('MPPD exposure data (exposure 2)'!$M:$M ) )","v":{"$error":"#VALUE!"}},{"$f":" INDEX('MPPD exposure data (exposure 2)'!$I:$I, COUNTA('MPPD exposure data (exposure 2)'!$I:$I ) )","v":{"$error":"#VALUE!"}},{"$f":" INDEX('MPPD exposure data (exposure 2)'!$K:$K, COUNTA('MPPD exposure data (exposure 2)'!$K:$K) )","v":{"$error":"#VALUE!"}},{"$f":"G10+H10","v":{"$error":"#VALUE!"}},{"$f":"SUM(F10:H10)","v":{"$error":"#VALUE!"}}]
["Aerosol conc. (mg/m3):",{"$f":"VLOOKUP(\"Aerosol\",'MPPD report (exposure 2)'!$A1:$F50,3,FALSE)","v":{"$error":"#N/A"}},null,null,"Retained dose per SA (mg/cm2)",{"$f":"F10/F6","v":{"$error":"#VALUE!"}},{"$f":"G10/G6","v":{"$error":"#VALUE!"}},{"$f":"H10/H6","v":{"$error":"#VALUE!"}},{"$f":"I10/I6","v":{"$error":"#VALUE!"}},{"$f":"J10/J6","v":{"$error":"#VALUE!"}}]
["Breathing frequency (/min):",{"$f":"VLOOKUP(\"Frequency:\",'MPPD report (exposure 2)'!$B1:$D50,2,FALSE)","v":{"$error":"#N/A"}}]
["Tidal volume (ml):",{"$f":"VLOOKUP(\"Tidal\",'MPPD report (exposure 2)'!$E2:$G51,3,FALSE)","v":{"$error":"#N/A"}},null,null,"Systemic dose (mg):",{"$f":" INDEX('MPPD exposure data (exposure 2)'!$X:$X, COUNTA('MPPD exposure data (exposure 2)'!$X:$X ) )","v":{"$error":"#VALUE!"}}]
["Breathing scenario:",{"$f":"CONCATENATE(VLOOKUP(\"scenario:\",'MPPD report (exposure 2)'!$B3:$D52,2,FALSE),\" \",VLOOKUP(\"scenario:\",'MPPD report (exposure 2)'!$B3:$D52,3,FALSE))","v":{"$error":"#N/A"}}]
[null,null,null,null,"Software version:    ",{"$f":"IF(ISBLANK('MPPD report (exposure 2)'!A1),CONCATENATE('MPPD report (exposure 2)'!A2,\" \",'MPPD report (exposure 2)'!B2,\" \",'MPPD report (exposure 2)'!C2,\" \",'MPPD report (exposure 2)'!D2),CONCATENATE('MPPD report (exposure 2)'!A1,\" \",'MPPD report (exposure 2)'!B1,\" \",'MPPD report (exposure 2)'!C1,\" \",'MPPD report (exposure 2)'!D1))","v":"   "}]
["Particle properties"]
[]
["Mass density (g/cm3):",{"$f":"VLOOKUP(\"density:\",'MPPD report (exposure 2)'!$B7:$C56,2,FALSE)","v":{"$error":"#N/A"}}]
["Diameter (µm):",{"$f":"VLOOKUP(\"Diameter:\",'MPPD report (exposure 2)'!$A8:$B57,2,FALSE)","v":{"$error":"#N/A"}}]
["GSD:",{"$f":"VLOOKUP(\"(GSD):\",'MPPD report (exposure 2)'!$B9:$C58,2,FALSE)","v":{"$error":"#N/A"}}]
[]
["Exposure time settings"]
[]
["Hours/day:",{"$f":"VLOOKUP(\"Hours\",'MPPD report (exposure 2)'!$C:$G,4,FALSE)","v":{"$error":"#N/A"}}]
["Days/week:",{"$f":"VLOOKUP(\"Days\",'MPPD report (exposure 2)'!$C:$G,4,FALSE)","v":{"$error":"#N/A"}}]
["Number of weeks:",{"$f":"VLOOKUP(\"Weeks:\",'MPPD report (exposure 2)'!$C:$D,2,FALSE)","v":{"$error":"#N/A"}}]
["Post-exposure days:",{"$f":"VLOOKUP(\"Post-Exposure\",'MPPD report (exposure 2)'!$A:$C,3,FALSE)","v":{"$error":"#N/A"}}]
[]
["Total exposure (hours)",{"$f":"B24*B25*B26","v":{"$error":"#N/A"}}]

{"sheet":"Dose metrics (exposure 3)","index":3,"n_rows":29,"n_cols":10,"rows_kept":29,"cut":false,"hidden":false,"merged":[[0,0,0,2],[0,4,0,9],[8,0,8,2],[15,0,15,2],[21,0,21,2]]}
["Population considerations",null,null,null,"Dose metrics"]
[]
["Lung geometry:",{"$f":"CONCATENATE(VLOOKUP(\"Geometry:\",'MPPD report (exposure 3)'!$B:$F,2,FALSE),\" \",VLOOKUP(\"Geometry:\",'MPPD report (exposure 3)'!$B:$F,3,FALSE),\" \",VLOOKUP(\"Geometry:\",'MPPD report (exposure 3)'!$B:$F,4,FALSE))","v":{"$error":"#N/A"}},null,null,"Region","ET","TB","PUL","TB+PUL","ET+TB+PUL"]
["Model:",{"$f":"VLOOKUP(\"Model:\",'MPPD report (exposure 3)'!$A:$F,2,FALSE)","v":{"$error":"#N/A"}},null,null,"Deposition fraction",{"$f":"VLOOKUP(\"ET\",'MPPD report (exposure 3)'!$B$1:$E$100,4,FALSE)","v":{"$error":"#N/A"}},{"$f":"VLOOKUP(\"TB\",'MPPD report (exposure 3)'!$B$1:$E$100,4,FALSE)","v":{"$error":"#N/A"}},{"$f":"VLOOKUP(\"pulmonary\",'MPPD report (exposure 3)'!$B$1:$E$100,4,FALSE)","v":{"$error":"#N/A"}},{"$f":"G4+H4","v":{"$error":"#N/A"}},{"$f":"SUM(F4:H4)","v":{"$error":"#N/A"}}]
["TLC (ml):",{"$f":"VLOOKUP(\"TLC\",'MPPD report (exposure 3)'!$A:$F,3,FALSE)","v":{"$error":"#N/A"}},null,null,"Daily deposited mass (mg/day)",{"$f":"$B$11/1000000*$B$13*$B$12*$B$24*60*F4","v":{"$error":"#N/A"}},{"$f":"$B$11/1000000*$B$13*$B$12*$B$24*60*G4","v":{"$error":"#N/A"}},{"$error":"#N/A"},{"$f":"G5+H5","v":{"$error":"#N/A"}},{"$f":"SUM(F5:H5)","v":{"$error":"#N/A"}}]
["FRC (ml):",{"$f":"VLOOKUP(\"FRC\",'MPPD report (exposure 3)'!$A:$F,3,FALSE)","v":{"$error":"#N/A"}},null,null,"Surface area SA (cm2)-normalizing factor",{"$f":"INDIRECT(CONCATENATE(\"'MPPD report (exposure 3)'!\",ADDRESS(CELL(\"row\",INDEX('MPPD report (exposure 3)'!$A$1:$A$100,MATCH(\"Extrathoracic\",'MPPD report (exposure 3)'!$A$1:$A$100,0))),4)))","v":{"$error":"#N/A"}},{"$f":"INDIRECT(CONCATENATE(\"'MPPD report (exposure 3)'!\",ADDRESS(CELL(\"row\",INDEX('MPPD report (exposure 3)'!$A$1:$A$100,MATCH(\"Extrathoracic\",'MPPD report (exposure 3)'!$A$1:$A$100,0)))+1,4)))","v":{"$error":"#N/A"}},{"$f":"INDIRECT(CONCATENATE(\"'MPPD report (exposure 3)'!\",ADDRESS(CELL(\"row\",INDEX('MPPD report (exposure 3)'!$A$1:$A$100,MATCH(\"Extrathoracic\",'MPPD report (exposure 3)'!$A$1:$A$100,0)))+2,4)))","v":{"$error":"#N/A"}},{"$f":"G6+H6","v":{"$error":"#N/A"}},{"$f":"SUM(F6:H6)","v":{"$error":"#N/A"}}]
["Enter body weight (kg)",null,null,null,"Daily deposited mass per regional SA (mg/day/m2)",{"$f":"F5/(F6*0.0001)","v":{"$error":"#N/A"}},{"$f":"G5/(G6*0.0001)","v":{"$error":"#N/A"}},{"$error":"#N/A"},{"$error":"#N/A"},{"$error":"#N/A"}]
[null,null,null,null,"Deposited dose (mg)",{"$f":" INDEX('MPPD exposure data (exposure 3)'!$E:$E, COUNTA('MPPD exposure data (exposure 3)'!$E:$E ) )","v":{"$error":"#VALUE!"}},{"$f":" INDEX('MPPD exposure data (exposure 3)'!$F:$F, COUNTA('MPPD exposure data (exposure 3)'!$F:$F ) )","v":{"$error":"#VALUE!"}},{"$f":" INDEX('MPPD exposure data (exposure 3)'!$G:$G, COUNTA('MPPD exposure data (exposure 3)'!$G:$G ) )","v":{"$error":"#VALUE!"}},{"$f":"G8+H8","v":{"$error":"#VALUE!"}},{"$f":"SUM(F8:H8)","v":{"$error":"#VALUE!"}}]
["Exposure conditions and activity characteristics",null,null,null,"Deposited dose per SA (mg/cm2)",{"$f":"F8/F6","v":{"$error":"#VALUE!"}},{"$f":"G8/G6","v":{"$error":"#VALUE!"}},{"$f":"H8/H6","v":{"$error":"#VALUE!"}},{"$f":"I8/I6","v":{"$error":"#VALUE!"}},{"$error":"#VALUE!"}]
[null,null,null,null,"Retained dose (mg)",{"$f":" INDEX('MPPD exposure data (exposure 3)'!$M:$M, COUNTA('MPPD exposure data (exposure 3)'!$M:$M ) )","v":{"$error":"#VALUE!"}},{"$f":" INDEX('MPPD exposure data (exposure 3)'!$I:$I, COUNTA('MPPD exposure data (exposure 3)'!$I:$I ) )","v":{"$error":"#VALUE!"}},{"$f":" INDEX('MPPD exposure data (exposure 3)'!$K:$K, COUNTA('MPPD exposure data (exposure 3)'!$K:$K) )","v":{"$error":"#VALUE!"}},{"$f":"G10+H10","v":{"$error":"#VALUE!"}},{"$f":"SUM(F10:H10)","v":{"$error":"#VALUE!"}}]
["Aerosol conc. (mg/m3):",{"$f":"VLOOKUP(\"Aerosol\",'MPPD report (exposure 3)'!$A1:$F50,3,FALSE)","v":{"$error":"#N/A"}},null,null,"Retained dose per SA (mg/cm2)",{"$f":"F10/F6","v":{"$error":"#VALUE!"}},{"$f":"G10/G6","v":{"$error":"#VALUE!"}},{"$f":"H10/H6","v":{"$error":"#VALUE!"}},{"$f":"I10/I6","v":{"$error":"#VALUE!"}},{"$f":"J10/J6","v":{"$error":"#VALUE!"}}]
["Breathing frequency (/min):",{"$f":"VLOOKUP(\"Frequency:\",'MPPD report (exposure 3)'!$B1:$D50,2,FALSE)","v":{"$error":"#N/A"}}]
["Tidal volume (ml):",{"$f":"VLOOKUP(\"Tidal\",'MPPD report (exposure 3)'!$E2:$G51,3,FALSE)","v":{"$error":"#N/A"}},null,null,"Systemic dose (mg):",{"$f":" INDEX('MPPD exposure data (exposure 3)'!$X:$X, COUNTA('MPPD exposure data (exposure 3)'!$X:$X ) )","v":{"$error":"#VALUE!"}}]
["Breathing scenario:",{"$f":"CONCATENATE(VLOOKUP(\"scenario:\",'MPPD report (exposure 3)'!$B3:$D52,2,FALSE),\" \",VLOOKUP(\"scenario:\",'MPPD report (exposure 3)'!$B3:$D52,3,FALSE))","v":{"$error":"#N/A"}}]
[null,null,null,null,"Software version:    ",{"$f":"IF(ISBLANK('MPPD report (exposure 3)'!A1),CONCATENATE('MPPD report (exposure 3)'!A2,\" \",'MPPD report (exposure 3)'!B2,\" \",'MPPD report (exposure 3)'!C2,\" \",'MPPD report (exposure 3)'!D2),CONCATENATE('MPPD report (exposure 3)'!A1,\" \",'MPPD report (exposure 3)'!B1,\" \",'MPPD report (exposure 3)'!C1,\" \",'MPPD report (exposure 3)'!D1))","v":"   "}]
["Particle properties"]
[]
["Mass density (g/cm3):",{"$f":"VLOOKUP(\"density:\",'MPPD report (exposure 3)'!$B7:$C56,2,FALSE)","v":{"$error":"#N/A"}}]
["Diameter (µm):",{"$f":"VLOOKUP(\"Diameter:\",'MPPD report (exposure 3)'!$A8:$B57,2,FALSE)","v":{"$error":"#N/A"}}]
["GSD:",{"$f":"VLOOKUP(\"(GSD):\",'MPPD report (exposure 3)'!$B9:$C58,2,FALSE)","v":{"$error":"#N/A"}}]
[]
["Exposure time settings"]
[]
["Hours/day:",{"$f":"VLOOKUP(\"Hours\",'MPPD report (exposure 3)'!$C:$G,4,FALSE)","v":{"$error":"#N/A"}}]
["Days/week:",{"$f":"VLOOKUP(\"Days\",'MPPD report (exposure 3)'!$C:$G,4,FALSE)","v":{"$error":"#N/A"}}]
["Number of weeks:",{"$f":"VLOOKUP(\"Weeks:\",'MPPD report (exposure 3)'!$C:$D,2,FALSE)","v":{"$error":"#N/A"}}]
["Post-exposure days:",{"$f":"VLOOKUP(\"Post-Exposure\",'MPPD report (exposure 3)'!$A:$C,3,FALSE)","v":{"$error":"#N/A"}}]
[]
["Total exposure (hours)",{"$f":"B24*B25*B26","v":{"$error":"#N/A"}}]

{"sheet":"Dose metrics (exposure 4)","index":4,"n_rows":29,"n_cols":10,"rows_kept":29,"cut":false,"hidden":false,"merged":[[0,0,0,2],[0,4,0,9],[8,0,8,2],[15,0,15,2],[21,0,21,2]]}
["Population considerations",null,null,null,"Dose metrics"]
[]
["Lung geometry:",{"$f":"CONCATENATE(VLOOKUP(\"Geometry:\",'MPPD report (exposure 4)'!$B:$F,2,FALSE),\" \",VLOOKUP(\"Geometry:\",'MPPD report (exposure 4)'!$B:$F,3,FALSE),\" \",VLOOKUP(\"Geometry:\",'MPPD report (exposure 4)'!$B:$F,4,FALSE))","v":{"$error":"#N/A"}},null,null,"Region","ET","TB","PUL","TB+PUL","ET+TB+PUL"]
["Model:",{"$f":"VLOOKUP(\"Model:\",'MPPD report (exposure 4)'!$A:$F,2,FALSE)","v":{"$error":"#N/A"}},null,null,"Deposition fraction",{"$f":"VLOOKUP(\"ET\",'MPPD report (exposure 4)'!$B$1:$E$100,4,FALSE)","v":{"$error":"#N/A"}},{"$f":"VLOOKUP(\"TB\",'MPPD report (exposure 4)'!$B$1:$E$100,4,FALSE)","v":{"$error":"#N/A"}},{"$f":"VLOOKUP(\"pulmonary\",'MPPD report (exposure 4)'!$B$1:$E$100,4,FALSE)","v":{"$error":"#N/A"}},{"$f":"G4+H4","v":{"$error":"#N/A"}},{"$f":"SUM(F4:H4)","v":{"$error":"#N/A"}}]
["TLC (ml):",{"$f":"VLOOKUP(\"TLC\",'MPPD report (exposure 4)'!$A:$F,3,FALSE)","v":{"$error":"#N/A"}},null,null,"Daily deposited mass (mg/day)",{"$f":"$B$11/1000000*$B$13*$B$12*$B$24*60*F4","v":{"$error":"#N/A"}},{"$f":"$B$11/1000000*$B$13*$B$12*$B$24*60*G4","v":{"$error":"#N/A"}},{"$error":"#N/A"},{"$f":"G5+H5","v":{"$error":"#N/A"}},{"$f":"SUM(F5:H5)","v":{"$error":"#N/A"}}]
["FRC (ml):",{"$f":"VLOOKUP(\"FRC\",'MPPD report (exposure 4)'!$A:$F,3,FALSE)","v":{"$error":"#N/A"}},null,null,"Surface area SA (cm2)-normalizing factor",{"$f":"INDIRECT(CONCATENATE(\"'MPPD report (exposure 4)'!\",ADDRESS(CELL(\"row\",INDEX('MPPD report (exposure 4)'!$A$1:$A$100,MATCH(\"Extrathoracic\",'MPPD report (exposure 4)'!$A$1:$A$100,0))),4)))","v":{"$error":"#N/A"}},{"$f":"INDIRECT(CONCATENATE(\"'MPPD report (exposure 4)'!\",ADDRESS(CELL(\"row\",INDEX('MPPD report (exposure 4)'!$A$1:$A$100,MATCH(\"Extrathoracic\",'MPPD report (exposure 4)'!$A$1:$A$100,0)))+1,4)))","v":{"$error":"#N/A"}},{"$f":"INDIRECT(CONCATENATE(\"'MPPD report (exposure 4)'!\",ADDRESS(CELL(\"row\",INDEX('MPPD report (exposure 4)'!$A$1:$A$100,MATCH(\"Extrathoracic\",'MPPD report (exposure 4)'!$A$1:$A$100,0)))+2,4)))","v":{"$error":"#N/A"}},{"$f":"G6+H6","v":{"$error":"#N/A"}},{"$f":"SUM(F6:H6)","v":{"$error":"#N/A"}}]
["Enter body weight (kg)",null,null,null,"Daily deposited mass per regional SA (mg/day/m2)",{"$f":"F5/(F6*0.0001)","v":{"$error":"#N/A"}},{"$f":"G5/(G6*0.0001)","v":{"$error":"#N/A"}},{"$error":"#N/A"},{"$error":"#N/A"},{"$error":"#N/A"}]
[null,null,null,null,"Deposited dose (mg)",{"$f":" INDEX('MPPD exposure data (exposure 4)'!$E:$E, COUNTA('MPPD exposure data (exposure 4)'!$E:$E ) )","v":{"$error":"#VALUE!"}},{"$f":" INDEX('MPPD exposure data (exposure 4)'!$F:$F, COUNTA('MPPD exposure data (exposure 4)'!$F:$F ) )","v":{"$error":"#VALUE!"}},{"$f":" INDEX('MPPD exposure data (exposure 4)'!$G:$G, COUNTA('MPPD exposure data (exposure 4)'!$G:$G ) )","v":{"$error":"#VALUE!"}},{"$f":"G8+H8","v":{"$error":"#VALUE!"}},{"$f":"SUM(F8:H8)","v":{"$error":"#VALUE!"}}]
["Exposure conditions and activity characteristics",null,null,null,"Deposited dose per SA (mg/cm2)",{"$f":"F8/F6","v":{"$error":"#VALUE!"}},{"$f":"G8/G6","v":{"$error":"#VALUE!"}},{"$f":"H8/H6","v":{"$error":"#VALUE!"}},{"$f":"I8/I6","v":{"$error":"#VALUE!"}},{"$error":"#VALUE!"}]
[null,null,null,null,"Retained dose (mg)",{"$f":" INDEX('MPPD exposure data (exposure 4)'!$M:$M, COUNTA('MPPD exposure data (exposure 4)'!$M:$M ) )","v":{"$error":"#VALUE!"}},{"$f":" INDEX('MPPD exposure data (exposure 4)'!$I:$I, COUNTA('MPPD exposure data (exposure 4)'!$I:$I ) )","v":{"$error":"#VALUE!"}},{"$f":" INDEX('MPPD exposure data (exposure 4)'!$K:$K, COUNTA('MPPD exposure data (exposure 4)'!$K:$K) )","v":{"$error":"#VALUE!"}},{"$f":"G10+H10","v":{"$error":"#VALUE!"}},{"$f":"SUM(F10:H10)","v":{"$error":"#VALUE!"}}]
["Aerosol conc. (mg/m3):",{"$f":"VLOOKUP(\"Aerosol\",'MPPD report (exposure 4)'!$A1:$F50,3,FALSE)","v":{"$error":"#N/A"}},null,null,"Retained dose per SA (mg/cm2)",{"$f":"F10/F6","v":{"$error":"#VALUE!"}},{"$f":"G10/G6","v":{"$error":"#VALUE!"}},{"$f":"H10/H6","v":{"$error":"#VALUE!"}},{"$f":"I10/I6","v":{"$error":"#VALUE!"}},{"$f":"J10/J6","v":{"$error":"#VALUE!"}}]
["Breathing frequency (/min):",{"$f":"VLOOKUP(\"Frequency:\",'MPPD report (exposure 4)'!$B1:$D50,2,FALSE)","v":{"$error":"#N/A"}}]
["Tidal volume (ml):",{"$f":"VLOOKUP(\"Tidal\",'MPPD report (exposure 4)'!$E2:$G51,3,FALSE)","v":{"$error":"#N/A"}},null,null,"Systemic dose (mg):",{"$f":" INDEX('MPPD exposure data (exposure 4)'!$X:$X, COUNTA('MPPD exposure data (exposure 4)'!$X:$X ) )","v":{"$error":"#VALUE!"}}]
["Breathing scenario:",{"$f":"CONCATENATE(VLOOKUP(\"scenario:\",'MPPD report (exposure 4)'!$B3:$D52,2,FALSE),\" \",VLOOKUP(\"scenario:\",'MPPD report (exposure 4)'!$B3:$D52,3,FALSE))","v":{"$error":"#N/A"}}]
[null,null,null,null,"Software version:    ",{"$f":"IF(ISBLANK('MPPD report (exposure 4)'!A1),CONCATENATE('MPPD report (exposure 4)'!A2,\" \",'MPPD report (exposure 4)'!B2,\" \",'MPPD report (exposure 4)'!C2,\" \",'MPPD report (exposure 4)'!D2),CONCATENATE('MPPD report (exposure 4)'!A1,\" \",'MPPD report (exposure 4)'!B1,\" \",'MPPD report (exposure 4)'!C1,\" \",'MPPD report (exposure 4)'!D1))","v":"   "}]
["Particle properties"]
[]
["Mass density (g/cm3):",{"$f":"VLOOKUP(\"density:\",'MPPD report (exposure 4)'!$B7:$C56,2,FALSE)","v":{"$error":"#N/A"}}]
["Diameter (µm):",{"$f":"VLOOKUP(\"Diameter:\",'MPPD report (exposure 4)'!$A8:$B57,2,FALSE)","v":{"$error":"#N/A"}}]
["GSD:",{"$f":"VLOOKUP(\"(GSD):\",'MPPD report (exposure 4)'!$B9:$C58,2,FALSE)","v":{"$error":"#N/A"}}]
[]
["Exposure time settings"]
[]
["Hours/day:",{"$f":"VLOOKUP(\"Hours\",'MPPD report (exposure 4)'!$C:$G,4,FALSE)","v":{"$error":"#N/A"}}]
["Days/week:",{"$f":"VLOOKUP(\"Days\",'MPPD report (exposure 4)'!$C:$G,4,FALSE)","v":{"$error":"#N/A"}}]
["Number of weeks:",{"$f":"VLOOKUP(\"Weeks:\",'MPPD report (exposure 4)'!$C:$D,2,FALSE)","v":{"$error":"#N/A"}}]
["Post-exposure days:",{"$f":"VLOOKUP(\"Post-Exposure\",'MPPD report (exposure 4)'!$A:$C,3,FALSE)","v":{"$error":"#N/A"}}]
[]
["Total exposure (hours)",{"$f":"B24*B25*B26","v":{"$error":"#N/A"}}]

{"sheet":"Dose metrics (exposure 5)","index":5,"n_rows":29,"n_cols":10,"rows_kept":29,"cut":false,"hidden":false,"merged":[[0,0,0,2],[0,4,0,9],[8,0,8,2],[15,0,15,2],[21,0,21,2]]}
["Population considerations",null,null,null,"Dose metrics"]
[]
["Lung geometry:",{"$f":"CONCATENATE(VLOOKUP(\"Geometry:\",'MPPD report (exposure 5)'!$B:$F,2,FALSE),\" \",VLOOKUP(\"Geometry:\",'MPPD report (exposure 5)'!$B:$F,3,FALSE),\" \",VLOOKUP(\"Geometry:\",'MPPD report (exposure 5)'!$B:$F,4,FALSE))","v":{"$error":"#N/A"}},null,null,"Region","ET","TB","PUL","TB+PUL","ET+TB+PUL"]
["Model:",{"$f":"VLOOKUP(\"Model:\",'MPPD report (exposure 5)'!$A:$F,2,FALSE)","v":{"$error":"#N/A"}},null,null,"Deposition fraction",{"$f":"VLOOKUP(\"ET\",'MPPD report (exposure 5)'!$B$1:$E$100,4,FALSE)","v":{"$error":"#N/A"}},{"$f":"VLOOKUP(\"TB\",'MPPD report (exposure 5)'!$B$1:$E$100,4,FALSE)","v":{"$error":"#N/A"}},{"$f":"VLOOKUP(\"pulmonary\",'MPPD report (exposure 5)'!$B$1:$E$100,4,FALSE)","v":{"$error":"#N/A"}},{"$f":"G4+H4","v":{"$error":"#N/A"}},{"$f":"SUM(F4:H4)","v":{"$error":"#N/A"}}]
["TLC (ml):",{"$f":"VLOOKUP(\"TLC\",'MPPD report (exposure 5)'!$A:$F,3,FALSE)","v":{"$error":"#N/A"}},null,null,"Daily deposited mass (mg/day)",{"$f":"$B$11/1000000*$B$13*$B$12*$B$24*60*F4","v":{"$error":"#N/A"}},{"$f":"$B$11/1000000*$B$13*$B$12*$B$24*60*G4","v":{"$error":"#N/A"}},{"$error":"#N/A"},{"$f":"G5+H5","v":{"$error":"#N/A"}},{"$f":"SUM(F5:H5)","v":{"$error":"#N/A"}}]
["FRC (ml):",{"$f":"VLOOKUP(\"FRC\",'MPPD report (exposure 5)'!$A:$F,3,FALSE)","v":{"$error":"#N/A"}},null,null,"Surface area SA (cm2)-normalizing factor",{"$f":"INDIRECT(CONCATENATE(\"'MPPD report (exposure 5)'!\",ADDRESS(CELL(\"row\",INDEX('MPPD report (exposure 5)'!$A$1:$A$100,MATCH(\"Extrathoracic\",'MPPD report (exposure 5)'!$A$1:$A$100,0))),4)))","v":{"$error":"#N/A"}},{"$f":"INDIRECT(CONCATENATE(\"'MPPD report (exposure 5)'!\",ADDRESS(CELL(\"row\",INDEX('MPPD report (exposure 4)'!$A$1:$A$100,MATCH(\"Extrathoracic\",'MPPD report (exposure 5)'!$A$1:$A$100,0)))+1,4)))","v":{"$error":"#N/A"}},{"$f":"INDIRECT(CONCATENATE(\"'MPPD report (exposure 5)'!\",ADDRESS(CELL(\"row\",INDEX('MPPD report (exposure 5)'!$A$1:$A$100,MATCH(\"Extrathoracic\",'MPPD report (exposure 5)'!$A$1:$A$100,0)))+2,4)))","v":{"$error":"#N/A"}},{"$f":"G6+H6","v":{"$error":"#N/A"}},{"$f":"SUM(F6:H6)","v":{"$error":"#N/A"}}]
["Enter body weight (kg)",null,null,null,"Daily deposited mass per regional SA (mg/day/m2)",{"$f":"F5/(F6*0.0001)","v":{"$error":"#N/A"}},{"$f":"G5/(G6*0.0001)","v":{"$error":"#N/A"}},{"$error":"#N/A"},{"$error":"#N/A"},{"$error":"#N/A"}]
[null,null,null,null,"Deposited dose (mg)",{"$f":" INDEX('MPPD exposure data (exposure 5)'!$E:$E, COUNTA('MPPD exposure data (exposure 5)'!$E:$E ) )","v":{"$error":"#VALUE!"}},{"$f":" INDEX('MPPD exposure data (exposure 5)'!$F:$F, COUNTA('MPPD exposure data (exposure 5)'!$F:$F ) )","v":{"$error":"#VALUE!"}},{"$f":" INDEX('MPPD exposure data (exposure 5)'!$G:$G, COUNTA('MPPD exposure data (exposure 5)'!$G:$G ) )","v":{"$error":"#VALUE!"}},{"$f":"G8+H8","v":{"$error":"#VALUE!"}},{"$f":"SUM(F8:H8)","v":{"$error":"#VALUE!"}}]
["Exposure conditions and activity characteristics",null,null,null,"Deposited dose per SA (mg/cm2)",{"$f":"F8/F6","v":{"$error":"#VALUE!"}},{"$f":"G8/G6","v":{"$error":"#VALUE!"}},{"$f":"H8/H6","v":{"$error":"#VALUE!"}},{"$f":"I8/I6","v":{"$error":"#VALUE!"}},{"$error":"#VALUE!"}]
[null,null,null,null,"Retained dose (mg)",{"$f":" INDEX('MPPD exposure data (exposure 5)'!$M:$M, COUNTA('MPPD exposure data (exposure 5)'!$M:$M ) )","v":{"$error":"#VALUE!"}},{"$f":" INDEX('MPPD exposure data (exposure 5)'!$I:$I, COUNTA('MPPD exposure data (exposure 5)'!$I:$I ) )","v":{"$error":"#VALUE!"}},{"$f":" INDEX('MPPD exposure data (exposure 5)'!$K:$K, COUNTA('MPPD exposure data (exposure 5)'!$K:$K) )","v":{"$error":"#VALUE!"}},{"$f":"G10+H10","v":{"$error":"#VALUE!"}},{"$f":"SUM(F10:H10)","v":{"$error":"#VALUE!"}}]
["Aerosol conc. (mg/m3):",{"$f":"VLOOKUP(\"Aerosol\",'MPPD report (exposure 5)'!$A1:$F50,3,FALSE)","v":{"$error":"#N/A"}},null,null,"Retained dose per SA (mg/cm2)",{"$f":"F10/F6","v":{"$error":"#VALUE!"}},{"$f":"G10/G6","v":{"$error":"#VALUE!"}},{"$f":"H10/H6","v":{"$error":"#VALUE!"}},{"$f":"I10/I6","v":{"$error":"#VALUE!"}},{"$f":"J10/J6","v":{"$error":"#VALUE!"}}]
["Breathing frequency (/min):",{"$f":"VLOOKUP(\"Frequency:\",'MPPD report (exposure 5)'!$B1:$D50,2,FALSE)","v":{"$error":"#N/A"}}]
["Tidal volume (ml):",{"$f":"VLOOKUP(\"Tidal\",'MPPD report (exposure 5)'!$E2:$G51,3,FALSE)","v":{"$error":"#N/A"}},null,null,"Systemic dose (mg):",{"$f":" INDEX('MPPD exposure data (exposure 5)'!$X:$X, COUNTA('MPPD exposure data (exposure 5)'!$X:$X ) )","v":{"$error":"#VALUE!"}}]
["Breathing scenario:",{"$f":"CONCATENATE(VLOOKUP(\"scenario:\",'MPPD report (exposure 5)'!$B3:$D52,2,FALSE),\" \",VLOOKUP(\"scenario:\",'MPPD report (exposure 4)'!$B3:$D52,3,FALSE))","v":{"$error":"#N/A"}}]
[null,null,null,null,"Software version:    ",{"$f":"IF(ISBLANK('MPPD report (exposure 5)'!A1),CONCATENATE('MPPD report (exposure 5)'!A2,\" \",'MPPD report (exposure 5)'!B2,\" \",'MPPD report (exposure 5)'!C2,\" \",'MPPD report (exposure 5)'!D2),CONCATENATE('MPPD report (exposure 5)'!A1,\" \",'MPPD report (exposure 5)'!B1,\" \",'MPPD report (exposure 5)'!C1,\" \",'MPPD report (exposure 5)'!D1))","v":"   "}]
["Particle properties"]
[]
["Mass density (g/cm3):",{"$f":"VLOOKUP(\"density:\",'MPPD report (exposure 5)'!$B7:$C56,2,FALSE)","v":{"$error":"#N/A"}}]
["Diameter (µm):",{"$f":"VLOOKUP(\"Diameter:\",'MPPD report (exposure 5)'!$A8:$B57,2,FALSE)","v":{"$error":"#N/A"}}]
["GSD:",{"$f":"VLOOKUP(\"(GSD):\",'MPPD report (exposure 5)'!$B9:$C58,2,FALSE)","v":{"$error":"#N/A"}}]
[]
["Exposure time settings"]
[]
["Hours/day:",{"$f":"VLOOKUP(\"Hours\",'MPPD report (exposure 5)'!$C:$G,4,FALSE)","v":{"$error":"#N/A"}}]
["Days/week:",{"$f":"VLOOKUP(\"Days\",'MPPD report (exposure 5)'!$C:$G,4,FALSE)","v":{"$error":"#N/A"}}]
["Number of weeks:",{"$f":"VLOOKUP(\"Weeks:\",'MPPD report (exposure 5)'!$C:$D,2,FALSE)","v":{"$error":"#N/A"}}]
["Post-exposure days:",{"$f":"VLOOKUP(\"Post-Exposure\",'MPPD report (exposure 5)'!$A:$C,3,FALSE)","v":{"$error":"#N/A"}}]
[]
["Total exposure (hours)",{"$f":"B24*B25*B26","v":{"$error":"#N/A"}}]

{"sheet":"MPPD report (exposure 1)","index":6,"n_rows":0,"n_cols":0,"rows_kept":0,"cut":false,"hidden":false,"merged":[]}

{"sheet":"MPPD exposure data (exposure 1)","index":7,"n_rows":0,"n_cols":0,"rows_kept":0,"cut":false,"hidden":false,"merged":[]}

{"sheet":"MPPD report (exposure 2)","index":8,"n_rows":0,"n_cols":0,"rows_kept":0,"cut":false,"hidden":false,"merged":[]}

{"sheet":"MPPD exposure data (exposure 2)","index":9,"n_rows":0,"n_cols":0,"rows_kept":0,"cut":false,"hidden":false,"merged":[]}

{"sheet":"MPPD report (exposure 3)","index":10,"n_rows":0,"n_cols":0,"rows_kept":0,"cut":false,"hidden":false,"merged":[]}

{"sheet":"MPPD exposure data (exposure 3)","index":11,"n_rows":0,"n_cols":0,"rows_kept":0,"cut":false,"hidden":false,"merged":[]}

{"sheet":"MPPD report (exposure 4)","index":12,"n_rows":0,"n_cols":0,"rows_kept":0,"cut":false,"hidden":false,"merged":[]}

{"sheet":"MPPD exposure data (exposure 4)","index":13,"n_rows":0,"n_cols":0,"rows_kept":0,"cut":false,"hidden":false,"merged":[]}

{"sheet":"MPPD report (exposure 5)","index":14,"n_rows":0,"n_cols":0,"rows_kept":0,"cut":false,"hidden":false,"merged":[]}

{"sheet":"MPPD exposure data (exposure 5)","index":15,"n_rows":0,"n_cols":0,"rows_kept":0,"cut":false,"hidden":false,"merged":[]}

{"sheet":"dropdown lists","index":16,"n_rows":23,"n_cols":7,"rows_kept":23,"cut":false,"hidden":false,"merged":[]}
["Experimental variable",null,"Number of exposure conditions","Dose metrics",null,"Control group?"]
[]
["Aerosol concentration (mg/m3)","B11",1,"ET deposited dose (µg)","F8","Yes",1]
["Particle size (µm)","B19",2,"TB deposited dose (µg)","G8","No",0]
["Exposure duration (hr)","B29",3,"PU deposited dose (µg)","H8"]
[null,null,4,"TB+PU deposited dose (µg)","I8"]
[null,null,5,"ET+TB+PU deposited dose (µg)","J8"]
[null,null,null,"ET deposited dose/SA (µg/cm2)","F9"]
["Selected dose metrics",null,null,"TB deposited dose/SA (µg/cm2)","G9"]
[{"$f":"VLOOKUP('Summarized Dose Metrics'!B6,D1:E23,2,FALSE)","v":{"$error":"#N/A"}},null,null,"PU deposited dose/SA (µg/cm2)","H9"]
[null,null,null,"TB+PU deposited dose/SA (µg/cm2)","I9"]
["Control group",null,null,"ET+TB+PU deposited dose/SA (µg/cm2)","J9"]
[{"$f":"VLOOKUP('Summarized Dose Metrics'!B5,F1:G5,2,FALSE)","v":{"$error":"#N/A"}},null,null,"ET retained dose (µg)","F10"]
[null,null,null,"TB retained dose (µg)","G10"]
["Selected experimental variable",null,null,"PU retained dose (µg)","H10"]
[{"$f":"VLOOKUP('Summarized Dose Metrics'!B3,A1:B6,2,FALSE)","v":{"$error":"#N/A"}},null,null,"TB+PU retained dose (µg)","I10"]
[null,null,null,"ET+TB+PU retained dose (µg)","J10"]
[null,null,null,"ET retained dose/SA (µg/cm2)","F11"]
[null,null,null,"TB retained dose/SA (µg/cm2)","G11"]
[null,null,null,"PU retained dose/SA (µg/cm2)","H11"]
[null,null,null,"TB+PU retained dose/SA (µg/cm2)","I11"]
[null,null,null,"ET+TB+PU retained dose/SA (µg/cm2)","J11"]
[null,null,null,"Systemic dose (mg)","F13"]